{"text_format":"1","workbook":"xlsx","n_sheets":4,"sheets":["SCHEDA SINGOLO","Elenco partecipanti","SCHEDA GRUPPI","CONSENSO DATI"],"not_rendered":{"charts":0,"images":2,"macros":1,"external_links":0,"defined_names":4,"comments":0,"pivot_tables":0},"unopened":[],"bounds":{"document_bytes":16777216,"sheet_cells":100000,"rows_first":2000,"rows_last":500,"rows_between":2000,"halvings":0,"cell_chars":16384,"cell_head_chars":4096},"cells_cut":0,"cells_raw":0,"read":"whole","date_system":"1900"}

{"sheet":"SCHEDA SINGOLO","index":0,"n_rows":72,"n_cols":12,"rows_kept":72,"cut":false,"hidden":false,"merged":[[12,9,12,13],[66,1,66,4],[60,1,60,13],[61,1,61,13],[38,1,38,13],[37,1,37,13],[39,1,39,13],[47,4,47,13],[42,1,42,3],[46,4,46,13],[44,1,44,13],[54,1,56,13],[48,4,48,13],[49,2,49,4],[49,6,49,10],[49,12,49,13],[4,1,5,13],[7,1,7,3],[10,2,10,13],[34,1,34,3],[34,6,34,13],[11,2,11,4],[18,1,18,6],[9,2,9,7],[9,9,9,13],[11,12,11,13],[11,6,11,10],[30,1,30,13],[13,1,13,6],[13,7,13,13],[12,2,12,4],[12,6,12,7],[27,1,27,13],[28,1,28,13],[29,1,29,13],[35,8,35,13],[50,9,50,13],[50,2,50,6],[52,8,52,13],[71,1,82,13],[36,1,36,13],[35,1,35,7],[32,1,32,3],[51,8,51,13],[58,1,59,13],[62,1,62,13],[64,1,64,4],[64,10,64,13],[51,2,51,5]]}
[]
[null,null,null,null,null,null,null,null,null,"SCHEDA DI ISCRIZIONE"]
[null,null,null,null,null,null,null,null,null,"Singolo iscritto"]
[]
[null,"La scheda, debitamente compilata, dovrà essere inviata al più presto solo ed esclusivamente alla Segreteria Organizzativa del Congresso, Momeda Eventi S.r.l., via e-mail (CongressoAttuari2020@momedaeventi.com), con allegata copia del bonifico effettuato e il presente file excel."]
[]
[]
[null,"INFORMAZIONI PARTECIPANTE"]
[]
[null,"NOME",null,null,null,null,null,null,"COGNOME"]
[null,"INDIRIZZO"]
[null,"CAP",null,null,null,"CITTA'",null,null,null,null,null,"PROV."]
[null,"TELEFONO",null,null,null,"FAX",null,null,"E-MAIL"]
[null,"Azienda/Ente/Associazione/Studio Professionale "]
[]
[null,"Assicuro la mia partecipazione alla seduta inaugurale (pomeriggio del 10 giugno 2020)"]
[]
[]
[null,"QUOTA DI ISCRIZIONE IVA INCLUSA (indicare tipo quota)"]
[]
[null,null,null,260,"(1)","Quota partecipanti 'base'"]
[null,null,null,205,"(1)","Quota partecipanti per iscrizioni prima del 15 marzo 2020"]
[null,null,null,170,"(1)","Quota under 30(*)"]
[null,null,null,120,"(1)","Quota studenti e dottorandi di ricerca(**)"]
[null,null,null,145,"(2)","Quota accompagnatori"]
[]
[null,null,null,"numero accompagnatori"]
[null,"(1)La quota dà diritto alla partecipazione a tutte le Sessioni Plenarie e Parallele, al Cocktail di Benvenuto, alla Cena di Gala del Congresso, ai Lunch e Coffee Break, al Materiale del Congresso."]
[null,"(*) Giovani iscritti o non iscritti all’Albo nazionale degli Attuari che al 09.06.2020 non hanno ancora compiuto 30 anni di età ."]
[null,"(**) Solo studenti di lauree magistrali che consentono l’accesso all’Esame di Stato di Attuario e dottorandi di ricerca in materie attinenti la professione di Attuario."]
[null,"(2)La quota dà diritto al Cocktail di Benvenuto e alla Cena di Gala del Congresso. "]
[]
[null,"MODALITA' DI PAGAMENTO"]
[]
[null,"Effettuo il versamento di",null,null,null,{"$f":"+SUMIF(C21:C24,\"X\",D21:D24)+D25*C27","v":0},"sul c/c bancario IT88F0100503240000000021725 (SWIFT: BNLIITRR) presso BNL, intestato a S.I.A. S.r.l."]
[null,"Il CRO (codice di riferimento operazione) del bonifico effettuato è:"]
[null,"Nel caso che il bonifico venga effettuato per un solo partecipante precisarne il nome e cognome nella Causale di pagamento. "]
[null,"Nel caso di unico bonifico per 2 o più partecipanti si richiede comunque la compilazione di più schede di iscrizione, una per ogni partecipante, "]
[null,"specificando nella causale del bonifico i nominativi dei partecipanti cui il bonifico si riferisce."]
[null,"Inviare copia del bonifico effettuato a CongressoAttuari2020@momedaeventi.com."]
[]
[]
[null,"DATI PER FATTURAZIONE"]
[]
[null,"Si prega di compilare tutti i campi della presente sezione in quanto indispensabili per la fatturazione, attività che la S.I.A. ha l'obbligo di effettuare.\nNel caso in cui l'iscritto non sia titolare di partita IVA si prega di ripetere il Codice Fiscale nel relativo campo."]
[]
[null,"INTESTAZIONE FATTURA"]
[null,null,null,null,"Nome e Cognome"]
[null,"INDIRIZZO (Via / Piazza)"]
[null,"CAP",null,null,null,"CITTA'",null,null,null,null,null,"PROV."]
[null,"CODICE FISCALE",null,null,null,null,null,"PARTITA IVA N."]
[null,"CODICE SDI",null,null,null,null,"LA FATTURA VA INVIATA A"]
[null,null,null,null,null,null,null,null,"indicare indirizzo e-mail"]
[]
[null,{"$f":"+IF(AND(C10<>0,J10<>0,C11<>0,C12<>0,G12<>0,M12<>0,C13<>0,G13<>0,J13<>0,H14<>0,K16<>0,F35<>0,I36<>0,E47<>0,E49<>0,C50<>0,G50<>0,M50<>0,C51<>0,J51<>0,C52<>0,I52<>0),\"BENE!! Ora puoi stampare la scheda di iscrizione, firmarla e inviarla via mail assieme alla copia del bonifico e del presente file excel\",\"Sei sicuro di aver compilato tutti i campi?\")","v":"Sei sicuro di aver compilato tutti i campi?"}]
[]
[]
[]
[null,"Per qualsiasi ulteriore informazione riguardante il Congresso, dal momento dell’iscrizione fino allo svolgimento dello stesso, si prega rivolgersi esclusivamente e direttamente a:"]
[]
[null,"Momeda Eventi S.r.l"]
[null,"n. tel. 051.5876729"]
[null,"indirizzo e-mail: CongressoAttuari2020@momedaeventi.com"]
[]
[null,"Data ",null,null,null,null,null,null,null,null,"FIRMA"]
[]
[]
[]
[]
[]
[]
[null,"Informativa ai sensi dell’art 13 del Regolamento UE 2016/679\nAi sensi dell’art. 13 del Regolamento UE 2016/679 (di seguito anche Regolamento) Sviluppo Iniziative Attuariali S.r.l. (in seguito SIA) con sede in Viale delle Milizie, 1 - 00192 Roma, Titolare del trattamento, La informa che il trattamento dei suoi dati personali è finalizzato alla gestione dell’evento da noi organizzato, nonché alla realizzazione di attività amministrative collegate. \nIl conferimento dei dati è obbligatorio, e in sua assenza il Titolare non potrà realizzare le attività su menzionate. La base giuridica del trattamento è la gestione del contratto o l’espletamento di obblighi precontrattuali a favore dell’interessato. I dati personali saranno trattati per l’organizzazione dell’evento, e successivamente saranno conservati per assolvere agli obblighi previsti da legge.\nI dati raccolti per le attività amministrative, non saranno diffusi, potranno essere comunicati a soggetti terzi che, per conto di Titolare, svolgono attività collegate alle finalità su menzionate e a soggetti cui la facoltà di accedere ai dati sia riconosciuta da disposizioni di legge e/o di normativa secondaria. \nLa informiamo, infine, che potrà esercitare i diritti contemplati dal Regolamento, scrivendo a info@sia-attuari.it.  In particolare, potrà:\n• accedere ai suoi dati personali, ottenendo evidenza delle finalità perseguite da parte del Titolare, delle categorie di dati coinvolti, dei destinatari a cui gli stessi possono essere comunicati, del periodo di conservazione applicabile, dell’esistenza di processi decisionali automatizzati, compresa la profilazione, e, almeno in tali casi, informazioni significative sulla logica utilizzata, nonché l'importanza e le conseguenze possibili per l'interessato, ove non già indicato nel testo di questa Informativa;\n• ottenere senza ritardo la rettifica dei dati personali inesatti che la riguardano;\n• ottenere, nei casi previsti dalla legge, la cancellazione dei suoi dati;\n• ottenere la limitazione del trattamento o di opporsi allo stesso, quando ammesso in base alle previsioni di legge applicabili al caso specifico.\nOve lo ritenga opportuno, l’interessato potrà proporre reclamo all'autorità di controllo."]

{"sheet":"Elenco partecipanti","index":1,"n_rows":94,"n_cols":8,"rows_kept":94,"cut":false,"hidden":false,"merged":[[67,1,67,12],[68,1,68,12],[73,2,74,2],[0,0,0,7],[53,1,53,7],[65,1,65,12],[66,1,66,12],[73,1,74,1]]}
["ALLEGATO ALLA SCHEDA DI ISCRIZIONE DEI GRUPPI - ELENCO DEI PARTECIPANTI AL XIII CONGRESSO NAZIONALE DEGLI ATTUARI (10-11-12 Giugno 2020)"]
["ID","Nome","Cognome","E-mail personale","P=Partecipante A=Accompagnatore","Tipo quota di iscrizione*","Importo quota (lordo IVA)","Partecipazione  alla seduta inaugurale (S/N)"]
[1,null,null,null,null,null,{"$f":"+IFERROR(VLOOKUP(F3,$A$60:$B$64,2,0),\"\")","v":""}]
[{"$f":"+A3+1","v":2},null,null,null,null,null,""]
[{"$f":"+A4+1","v":3},null,null,null,null,null,""]
[4,null,null,null,null,null,""]
[5,null,null,null,null,null,""]
[6,null,null,null,null,null,""]
[7,null,null,null,null,null,""]
[8,null,null,null,null,null,""]
[9,null,null,null,null,null,""]
[10,null,null,null,null,null,""]
[11,null,null,null,null,null,""]
[12,null,null,null,null,null,""]
[13,null,null,null,null,null,""]
[14,null,null,null,null,null,""]
[15,null,null,null,null,null,""]
[16,null,null,null,null,null,""]
[17,null,null,null,null,null,""]
[18,null,null,null,null,null,""]
[19,null,null,null,null,null,""]
[20,null,null,null,null,null,""]
[21,null,null,null,null,null,""]
[22,null,null,null,null,null,""]
[{"$f":"+A24+1","v":23},null,null,null,null,null,""]
[24,null,null,null,null,null,""]
[25,null,null,null,null,null,""]
[26,null,null,null,null,null,""]
[27,null,null,null,null,null,""]
[28,null,null,null,null,null,""]
[29,null,null,null,null,null,""]
[30,null,null,null,null,null,""]
[31,null,null,null,null,null,""]
[32,null,null,null,null,null,""]
[33,null,null,null,null,null,""]
[34,null,null,null,null,null,""]
[35,null,null,null,null,null,""]
[36,null,null,null,null,null,""]
[37,null,null,null,null,null,""]
[38,null,null,null,null,null,""]
[39,null,null,null,null,null,""]
[40,null,null,null,null,null,""]
[{"$f":"+A42+1","v":41},null,null,null,null,null,""]
[42,null,null,null,null,null,""]
[43,null,null,null,null,null,""]
[44,null,null,null,null,null,""]
[45,null,null,null,null,null,""]
["T",null,{"$f":"+COUNTA(C3:C47)","v":0},null,null,null,{"$f":"SUM(G3:G47)","v":0},{"$f":"+COUNTIF($H$3:$H$47,\"S\")","v":0}]
[null,"di cui accompagnatori",{"$f":"+COUNTIF(E3:E47,\"A\")","v":0}]
[]
[]
[]
[]
[null,"* indicare la lettera (A, B, C, D, E o F) corrispondente alla tipologia di quota indicata nel Riepilogo Quote riportato successivamente"]
[]
[]
[]
[null,"RIEPILOGO QUOTE (iva inclusa)"]
[]
["A",260,"Quota partecipanti 'base'"]
["B",205,"Quota partecipanti per iscrizioni prima del 15 marzo 2020"]
["C",170,"Quota under 30(*)"]
["D",120,"Quota studenti e dottorandi di ricerca(**)"]
["E",145,"Quota accompagnatori"]
[]
[null,"(1)La quota dà diritto alla partecipazione a tutte le Sessioni Plenarie e Parallele, al Cocktail di Benvenuto, alla Cena di Gala del Congresso, ai Lunch e Coffee Break, al Materiale del Congresso."]
[null,"(*) Giovani iscritti o non iscritti all’Albo nazionale degli Attuari che al 09.06.2020 non hanno ancora compiuto 30 anni di età ."]
[null,"(**) Solo studenti di lauree magistrali che consentono l’accesso all’Esame di Stato di Attuario e dottorandi di ricerca in materie attinenti la professione di Attuario."]
[null,"(2)La quota dà diritto al Cocktail di Benvenuto e alla Cena di Gala del Congresso. "]
[]
[]
[null,"AGEVOLAZIONE GRUPPI"]
[]
[null,"Numero di partecipanti iscritti","Sconto"]
[]
[null,10,0.02]
[null,{"$f":"+B76+1","v":11},{"$f":"+C76+1%","v":0.03}]
[null,{"$f":"+B77+1","v":12},{"$f":"+C77+1%","v":0.04}]
[null,13,0.05]
[null,14,6.0000000000000005E-2]
[null,15,7.0000000000000007E-2]
[null,16,0.08]
[null,17,0.09]
[null,18,9.9999999999999992E-2]
[null,19,0.10999999999999999]
[null,20,0.11999999999999998]
[null,21,0.12999999999999998]
[null,22,0.13999999999999999]
[null,23,0.15]
[null,24,0.16]
[null,25,0.17]
[null,26,0.18000000000000002]
[null,{"$f":"+B92+1","v":27},{"$f":"+C92+1%","v":0.19000000000000003}]
[null,28,0.20000000000000004]

{"sheet":"SCHEDA GRUPPI","index":2,"n_rows":68,"n_cols":12,"rows_kept":68,"cut":false,"hidden":false,"merged":[[67,1,78,13],[52,1,53,13],[54,1,54,13],[43,8,43,13],[48,1,50,13],[43,2,43,5],[44,8,44,13],[61,1,61,4],[55,1,55,13],[56,1,56,13],[59,1,59,4],[59,10,59,13],[30,1,30,7],[30,8,30,13],[31,1,31,13],[32,1,32,13],[42,2,42,6],[42,9,42,13],[38,4,38,13],[41,12,41,13],[40,4,40,13],[35,1,35,3],[39,4,39,13],[36,1,36,13],[41,6,41,10],[41,2,41,4],[4,1,5,13],[7,1,7,3],[9,1,9,6],[9,7,9,13],[15,1,15,3],[29,1,29,3],[29,6,29,13],[12,2,12,4],[12,6,12,7],[10,2,10,13],[11,2,11,4],[11,6,11,9],[11,11,11,13],[25,2,25,12],[12,9,12,13]]}
[]
[null,null,null,null,null,null,null,null,null,"SCHEDA DI ISCRIZIONE"]
[null,null,null,null,null,null,null,null,null,"Gruppi"]
[]
[null,"La scheda, debitamente compilata, dovrà essere inviata al più presto solo ed esclusivamente alla Segreteria Organizzativa del Congresso, Momeda Eventi S.r.l., via e-mail (CongressoAttuari2020@momedaeventi.com), con allegata copia del bonifico effettuato e il presente file excel."]
[]
[]
[null,"INFORMAZIONI GENERALI"]
[]
[null,"AZIENDA/ENTE/ASSOCIAZIONE/STUDIO PROFESSIONALE"]
[null,"INDIRIZZO"]
[null,"CAP",null,null,null,"CITTA'",null,null,null,null,"PROV."]
[null,"TELEFONO",null,null,null,"FAX",null,null,"E-MAIL"]
[]
[]
[null,"MODALITA' DI PAGAMENTO"]
[]
[null,"(a)","TOTALE NUMERO ISCRITTI",null,null,null,null,{"$f":"+'Elenco partecipanti'!C48-'Elenco partecipanti'!C49","v":0}]
[null,"(b)","AMMONTARE COMPLESSIVO ANTE SCONTO",null,null,null,null,{"$f":"+'Elenco partecipanti'!G48","v":0}]
[null,"(c )",null,null,null,"SCONTO %",null,{"$f":"+IF(H18<10,0%,IF(H18>='Elenco partecipanti'!$B$94,'Elenco partecipanti'!$C$94,VLOOKUP(H18,'Elenco partecipanti'!$B$76:$C$94,2,0)))","v":0}]
[null,"(d)",null,null,null,"SCONTO €",null,{"$f":"+H20*H19","v":0}]
[null,"(e)","VERSAMENTO (POST SCONTO) iva inclusa",null,null,null,null,{"$f":"+H19-H21","v":0}]
[]
[null,"(a)","Numero complessivo di iscrizioni esclusi eventuali accompagnatori"]
[null,"(b)","Totale € dell'elenco dei partecipanti"]
[null,"(c )","Percentuale di sconto da individuare nella tabella 'Riepilogo agevolazione gruppi' sulla base del numero di partecipanti iscritti"]
[null,"(d)","(b) x (c )"]
[null,"(e)","(b) - (d)"]
[]
[null,"Effettuo il versamento di",null,null,null,{"$f":"+H22","v":0},"sul c/c bancario IT88F0100503240000000021725 (SWIFT: BNLIITRR) presso BNL, intestato a S.I.A. S.r.l."]
[null,"Il CRO (codice di riferimento operazione) del bonifico effettuato è:"]
[null,"Specificare nella causale del pagamento il nome dell'Azienda/Ente/Associazione/Studio Professionale che effettua l'iscrizione."]
[null,"Inviare copia del bonifico effettuato a CongressoAttuari2020@momedaeventi.com, assieme all'elenco partecipanti."]
[]
[]
[null,"DATI PER FATTURAZIONE"]
[null,"Si prega di compilare tutti i campi della presente sezione in quanto indispensabili per la fatturazione, attività che la S.I.A. ha l'obbligo di effettuare.\nIn particolare si richiede di inserire i campi 'Codice Fiscale' e 'Partita IVA' anche se coincidenti."]
[]
[null,"INTESTAZIONE FATTURA"]
[null,null,null,null,"Azienda / Ente / Associazione / Studio Professionale"]
[null,"INDIRIZZO (Via / Piazza)"]
[null,"CAP",null,null,null,"CITTA'",null,null,null,null,null,"PROV."]
[null,"CODICE FISCALE",null,null,null,null,null,"PARTITA IVA N."]
[null,"CODICE SDI",null,null,null,null,"LA FATTURA VA INVIATA A"]
[null,null,null,null,null,null,null,null,"indicare indirizzo e-mail"]
[null,"La Fattura deve essere in regime di Split Payment?"]
[]
[]
[null,{"$f":"+IF(AND(H10<>0,C11<>0,C12<>0,G12<>0,L12<>0,C13<>0,G13<>0,J13<>0,F30<>0,I31<>0,E39<>0,E41<>0,C42<>0,G42<>0,M42<>0,C43<>0,J43<>0,C44<>0,I44<>0,H46<>0),\"BENE!! Ora puoi stampare la scheda di iscrizione, firmarla e inviarla via mail assieme alla copia del bonifico e del presente file excel\",\"Sei sicuro di aver compilato tutti i campi?\")","v":"Sei sicuro di aver compilato tutti i campi?"}]
[]
[]
[]
[null,"Per qualsiasi ulteriore informazione riguardante il Congresso, dal momento dell’iscrizione fino allo svolgimento dello stesso, si prega rivolgersi esclusivamente e direttamente a:"]
[]
[null,"Momeda Eventi S.r.l"]
[null,"n. tel. 051.5876729"]
[null,"indirizzo e-mail: CongressoAttuari2020@momedaeventi.com"]
[]
[]
[null,"Data ",null,null,null,null,null,null,null,null,"FIRMA"]
[]
[]
[]
[]
[]
[]
[]
[null,"Informativa ai sensi dell’art 13 del Regolamento UE 2016/679\nAi sensi dell’art. 13 del Regolamento UE 2016/679 (di seguito anche Regolamento) Sviluppo Iniziative Attuariali S.r.l. (in seguito SIA) con sede in Viale delle Milizie, 1 - 00192 Roma, Titolare del trattamento, La informa che il trattamento dei suoi dati personali è finalizzato alla gestione dell’evento da noi organizzato, nonché alla realizzazione di attività amministrative collegate. \nIl conferimento dei dati è obbligatorio, e in sua assenza il Titolare non potrà realizzare le attività su menzionate. La base giuridica del trattamento è la gestione del contratto o l’espletamento di obblighi precontrattuali a favore dell’interessato. I dati personali saranno trattati per l’organizzazione dell’evento, e successivamente saranno conservati per assolvere agli obblighi previsti da legge.\nI dati raccolti per le attività amministrative, non saranno diffusi, potranno essere comunicati a soggetti terzi che, per conto di Titolare, svolgono attività collegate alle finalità su menzionate e a soggetti cui la facoltà di accedere ai dati sia riconosciuta da disposizioni di legge e/o di normativa secondaria. \nLa informiamo, infine, che potrà esercitare i diritti contemplati dal Regolamento, scrivendo a info@sia-attuari.it.  In particolare, potrà:\n• accedere ai suoi dati personali, ottenendo evidenza delle finalità perseguite da parte del Titolare, delle categorie di dati coinvolti, dei destinatari a cui gli stessi possono essere comunicati, del periodo di conservazione applicabile, dell’esistenza di processi decisionali automatizzati, compresa la profilazione, e, almeno in tali casi, informazioni significative sulla logica utilizzata, nonché l'importanza e le conseguenze possibili per l'interessato, ove non già indicato nel testo di questa Informativa;\n• ottenere senza ritardo la rettifica dei dati personali inesatti che la riguardano;\n• ottenere, nei casi previsti dalla legge, la cancellazione dei suoi dati;\n• ottenere la limitazione del trattamento o di opporsi allo stesso, quando ammesso in base alle previsioni di legge applicabili al caso specifico.\nOve lo ritenga opportuno, l’interessato potrà proporre reclamo all'autorità di controllo."]

{"sheet":"CONSENSO DATI","index":3,"n_rows":38,"n_cols":9,"rows_kept":38,"cut":false,"hidden":false,"merged":[[33,0,35,12],[37,8,37,11],[4,0,5,12],[10,0,17,12],[18,0,21,12],[22,1,23,12],[26,1,27,12]]}
[]
[]
[]
[]
["Il modulo di consenso dovrà essere inviato assieme alla scheda di iscrizione solo ed esclusivamente alla Segreteria Organizzativa del Congresso, Momeda Eventi S.r.l., via e-mail (CongressoAttuari2020@momedaeventi.com)."]
[]
[]
[]
["Informativa ai sensi dell’art 13 del Regolamento EU 2016/679"]
[]
["Ai sensi dell’art. 13 del Regolamento UE 2016/679 (di seguito anche Regolamento) l’Ordine degli Attuari con sede in Viale delle Milizie, 1 - 00192 Roma, Titolare del trattamento, La informa che nel corso del XIII Congresso Nazionale degli Attuari potranno essere realizzate delle riprese video/fotografiche, che verranno pubblicate sul sito web e/o social network del Titolare del Trattamento per finalità pubblicitarie. Il conferimento di tali dati è facoltativo e in sua assenza il Titolare non potrà procedere alla pubblicazione delle immagini. La base giuridica del trattamento dei dati su menzionati (la pubblicazione delle immagini video/fotografiche riprese) è il consenso. In relazione a quest’ultimo ogni interessato ha il diritto di revocare il consenso in qualsiasi momento. La revoca del consenso non pregiudica la liceità del trattamento in base al consenso fornito prima del ritiro. Le immagini riprese saranno utilizzate per il tempo strettamente necessario alla pubblicizzazione dell’evento, poi verranno cancellate."]
[]
[]
[]
[]
[]
[]
[]
["Il Responsabile per la Protezione dei dati è Protection Trade S.r.l. con sede in Via Giorgio Morandi, 22 – Itri (LT), e-mail dpo_ordinenazionaleattuari@protectiontrade.it.   \nLa informiamo, infine, che potrà esercitare i diritti contemplati dal Regolamento, scrivendo a segreteria@ordineattuari.it.  In particolare, potrà:"]
[]
[]
[]
[null,"• accedere ai suoi dati personali, ottenendo evidenza delle finalità perseguite da parte del Titolare, delle categorie di dati coinvolti, dei destinatari a cui gli stessi possono essere comunicati, del periodo di conservazione applicabile, dell’esistenza di processi decisionali automatizzati, compresa la profilazione, e, almeno in tali casi, informazioni significative sulla logica utilizzata, nonché l'importanza e le conseguenze possibili per l'interessato, ove non già indicato nel testo di questa Informativa;"]
[]
[null,"• ottenere senza ritardo la rettifica dei dati personali inesatti che la riguardano;"]
[null,"• ottenere, nei casi previsti dalla legge, la cancellazione dei suoi dati;"]
[null,"• ottenere la limitazione del trattamento o di opporsi allo stesso, quando ammesso in base alle previsioni di legge applicabili al caso specifico."]
[]
["Ove lo ritenga opportuno, l’interessato potrà proporre reclamo all'autorità di controllo."]
[]
[]
[]
["Formula di consenso al trattamento dei dati"]
["Io sottoscritto .............................................................confermo di aver letto con attenzione l’informativa sottopostami dall’Ordine degli Attuari in relazione alle operazioni di trattamento compiute sui dati personali che mi riguardano manifesto il mio consenso alla pubblicazione dei miei dati personali (la mia immagine) sul sito web e/o social network del Titolare."]
[]
[]
[]
[null,null,null,null,null,null,null,null,"FIRMA"]